[Event "Italian Youth U20 Championship 2023"]
[Site "Brescia"]
[Date "2023.12.08"]
[Round "6.3"]
[White "Bettalli, Francesco"]
[Black "Titze, Leo"]
[Result "1/2-1/2"]
[ECO "B49"]
[WhiteElo "2274"]
[BlackElo "2164"]
[Annotator "RC"]
[PlyCount "72"]
[EventDate "2023.12.03"]
[EventType "tourn"]
[EventCountry "ITA"]
[SourceTitle "playchess.com"]
[Source "ChessBase"]
[SourceQuality "1"]
[TimeControl "40/6000+30:20/3000+30:900+30"]

1. e4 {[%emt 0:02:52]} c5 {[%emt 0:00:07]} 2. Nf3 {[%emt 0:00:09]} e6 {[%emt 0:00:15]} 3. d4 {[%emt 0:00:37]} cxd4 {[%emt 0:00:45]} 4. Nxd4 {[%emt 0:00:04]} Nc6 {[%emt 0:00:05]} 5. Nc3 {[%emt 0:00:40]} Qc7 {[%emt 0:00:34]} 6. Be3 {[%emt 0:00:53]} a6 {[%emt 0:00:43]} 7. a3 {[%emt 0:00:42]} b5 {[%emt 0:04:27]} 8. Nxc6 {[%emt 0:02:00]} Qxc6 {[%emt 0:02:43]} 9. Be2 {[%emt 0:00:31]} Bb7 {[%emt 0:01:32]} 10. O-O {[%emt 0:00:19]} Qc7 {[%emt 0:03:15]} 11. Qd2 {[%emt 0:01:02]} Nf6 {[%emt 0:03:20]} 12. Bf3 {[%emt 0:01:34]} d6 {[%emt 0:01:25]} 13. Rfd1 {[%emt 0:03:10]} Be7 {[%emt 0:02:56]} 14. Bf4 {[%emt 0:01:40]} Rd8 {[%emt 0:04:00]} 15. Qe3 {[%emt 0:07:39]} Nd7 {[%emt 0:10:51]} 16. Ne2 {[%emt 0:19:21]} O-O {[%emt 0:10:33]} 17. a4 {[%emt 0:07:19]} bxa4 {[%emt 0:20:53]} 18. Rxa4 {[%emt 0:02:30]} Qxc2 {[%emt 0:08:48]} 19. Nc3 {[%emt 0:01:11]} e5 {[%emt 0:00:48]} 20. Bg3 {[%emt 0:02:44]} Qb3 {[%emt 0:02:35]} 21. Rda1 {[%emt 0:10:04]} Nc5 {[%emt 0:03:56]} 22. Bd1 {[%emt 0:01:59]} Qb6 {[%emt 0:02:14]} 23. Rc4 {[%emt 0:01:37]} a5 {[%emt 0:04:04]} 24. Rb1 {[%emt 0:01:39]} Rb8 {[%emt 0:04:52]} 25. b4 {[%emt 0:01:59]} axb4 {[%emt 0:00:09]} 26. Rcxb4 {[%emt 0:00:04]} Qc7 {[%emt 0:01:17]} 27. Nb5 {[%emt 0:03:38]} Qd7 {[%emt 0:02:43]} 28. Nc3 {[%emt 0:00:22]} Qc7 {[%emt 0:00:09]} 29. Nb5 {[%emt 0:00:05]} Qd7 {[%emt 0:01:13]} 30. Nc3 {[%emt 0:00:02]} Ra8 {[%emt 0:01:42]} 31. Na4 {[%emt 0:01:03]} Nxa4 {[%emt 0:01:58]} 32. Rxb7 {[%emt 0:00:16]} Qe6 {[%emt 0:02:01]} 33. Bb3 {[%emt 0:01:43]} Qf6 {[%emt 0:00:09]} 34. Bd5 {[%emt 0:02:00]} Nc5 {[%emt 0:00:32]} 35. Rc7 {[%emt 0:01:34]} Ra6 {[%emt 0:03:06]} 36. Qe2 {[%emt 0:01:24]} Bd8 {[%emt 0:02:26]} 1/2-1/2

[Event "Italian Youth U20 Championship 2023"]
[Site "Brescia"]
[Date "2023.12.09"]
[Round "7.1"]
[White "Cappelletto, Joshuaede"]
[Black "Pozzari, Simone"]
[Result "0-1"]
[ECO "C65"]
[WhiteElo "2329"]
[BlackElo "2186"]
[Annotator "ChessBase"]
[PlyCount "60"]
[EventDate "2023.12.03"]
[EventType "tourn"]
[EventCountry "ITA"]
[SourceTitle "playchess.com"]
[Source "ChessBase"]
[SourceQuality "1"]
[TimeControl "40/6000+30:20/3000+30:900+30"]

1. e4 {[%emt 0:00:46]} e5 {[%emt 0:00:06]} 2. Nf3 {[%emt 0:00:11]} Nc6 {[%emt 0:00:04]} 3. Bb5 {[%emt 0:00:06]} Nf6 {[%emt 0:00:04]} 4. d3 {[%emt 0:00:05]} Bc5 {[%emt 0:00:05]} 5. c3 {[%emt 0:00:28]} O-O {[%emt 0:01:14]} 6. O-O {[%emt 0:02:06]} d6 {[%emt 0:00:05]} 7. h3 {[%emt 0:02:03]} a6 {[%emt 0:01:05]} 8. Ba4 {[%emt 0:01:23]} h6 {[%emt 0:02:01]} 9. Re1 {[%emt 0:03:12]} Re8 {[%emt 0:09:15]} 10. Nbd2 {[%emt 0:05:12]} d5 {[%emt 0:00:26]} 11. exd5 {[%emt 0:21:31]} Qxd5 {[%emt 0:00:17]} 12. Bxc6 {[%emt 0:01:31]} bxc6 {[%emt 0:00:03]} 13. Qa4 {[%emt 0:11:38]} Bb6 {[%emt 0:16:46]} 14. Qc4 {[%emt 0:12:33]} Qd6 {[%emt 0:01:56]} 15. Ne4 {[%emt 0:00:35]} Nxe4 {[%emt 0:01:53]} 16. Qxe4 {[%emt 0:08:09]} Bd7 {[%emt 0:18:24]} 17. Be3 {[%emt 0:03:09]} c5 {[%emt 0:05:31]} 18. Nd2 {[%emt 0:07:31]} f5 {[%emt 0:07:13]} 19. Qf3 {[%emt 0:00:46]} Qf6 {[%emt 0:11:46]} 20. Qd5+ {[%emt 0:03:29]} Be6 {[%emt 0:01:11]} 21. Qc6 {[%emt 0:00:06]} Qf7 {[%emt 0:04:11]} 22. b4 {[%emt 0:04:14]} Bd5 {[%emt 0:01:11]} 23. Qa4 {[%emt 0:00:05]} Qg6 {[%emt 0:05:53]} 24. f3 {[%emt 0:00:24]} cxb4 {[%emt 0:01:07]} 25. Qxb4 {[%emt 0:01:18]} Bxe3+ {[%emt 0:04:05]} 26. Rxe3 {[%emt 0:00:04]} Rab8 {[%emt 0:01:57]} 27. Qc5 {[%emt 0:01:09]} Rb5 {[%emt 0:03:13]} 28. Qxc7 {[%emt 0:00:05]} Rb2 {[%emt 0:00:49]} 29. Rd1 {[%emt 0:00:50]} f4 {[%emt 0:01:10]} 30. Re2 {[%emt 0:01:39]} Bxf3 {[%emt 0:00:26]} 0-1

[Event "Italian Youth U20 Championship 2023"]
[Site "Brescia"]
[Date "2023.12.09"]
[Round "7.3"]
[White "Pegno, Mattia"]
[Black "Bettalli, Francesco"]
[Result "1-0"]
[ECO "E81"]
[WhiteElo "2155"]
[BlackElo "2274"]
[Annotator "ChessBase"]
[PlyCount "101"]
[EventDate "2023.12.03"]
[EventType "tourn"]
[EventCountry "ITA"]
[SourceTitle "playchess.com"]
[Source "ChessBase"]
[SourceQuality "1"]
[TimeControl "40/6000+30:20/3000+30:900+30"]

1. c4 {[%emt 0:03:12]} g6 {[%emt 0:01:38]} 2. Nc3 {[%emt 0:00:45]} Bg7 {[%emt 0:00:19]} 3. d4 {[%emt 0:00:47]} Nf6 {[%emt 0:00:06]} 4. e4 {[%emt 0:00:18]} d6 {[%emt 0:00:06]} 5. Bd3 {[%emt 0:00:11]} O-O {[%emt 0:00:17]} 6. Nge2 {[%emt 0:00:11]} c6 {[%emt 0:00:10]} 7. O-O {[%emt 0:01:40]} a6 {[%emt 0:00:10]} 8. f3 {[%emt 0:14:41]} b5 {[%emt 0:01:16]} 9. Be3 {[%emt 0:02:44]} Nbd7 {[%emt 0:06:55]} 10. Qd2 {[%emt 0:04:20]} Bb7 {[%emt 0:01:29]} 11. Rfd1 {[%emt 0:22:53]} e5 {[%emt 0:02:04]} 12. Rac1 {[%emt 0:11:15]} Qe7 {[%emt 0:09:14]} 13. d5 {[%emt 0:04:47]} b4 {[%emt 0:00:40]} 14. Na4 {[%emt 0:01:11]} c5 {[%emt 0:00:06]} 15. g4 {[%emt 0:00:54]} Ne8 {[%emt 0:04:48]} 16. Ng3 {[%emt 0:01:27]} Kh8 {[%emt 0:05:38]} 17. Kg2 {[%emt 0:02:18]} Bf6 {[%emt 0:01:40]} 18. g5 {[%emt 0:09:52]} Bg7 {[%emt 0:00:01]} 19. h4 {[%emt 0:00:18]} f6 {[%emt 0:07:42]} 20. Rh1 {[%emt 0:01:06]} Qf7 {[%emt 0:02:19]} 21. Qe2 {[%emt 0:01:10]} Rg8 {[%emt 0:01:23]} 22. Rh2 {[%emt 0:05:08]} Bf8 {[%emt 0:03:17]} 23. Rch1 {[%emt 0:00:13]} h5 {[%emt 0:00:15]} 24. gxh6 {[%emt 0:04:39]} f5 {[%emt 0:02:39]} 25. exf5 {[%emt 0:00:21]} gxf5 {[%emt 0:00:04]} 26. Bg5 {[%emt 0:00:37]} Be7 {[%emt 0:10:35]} 27. h7 {[%emt 0:00:48]} Rg7 {[%emt 0:01:31]} 28. Nxf5 {[%emt 0:01:02]} Bxg5 {[%emt 0:01:03]} 29. Nxg7 {[%emt 0:00:24]} Bf4 {[%emt 0:00:56]} 30. Ne6 {[%emt 0:03:57]} Nef6 {[%emt 0:01:47]} 31. Kf1 {[%emt 0:05:08]} Bxh2 {[%emt 0:07:59]} 32. Rxh2 {[%emt 0:02:52]} Nh5 {[%emt 0:00:45]} 33. Rg2 {[%emt 0:02:45]} Nf4 {[%emt 0:01:44]} 34. Nxf4 {[%emt 0:00:06]} exf4 {[%emt 0:00:47]} 35. Bg6 {[%emt 0:00:58]} Qf6 {[%emt 0:01:05]} 36. Rg5 {[%emt 0:01:38]} Ne5 {[%emt 0:03:41]} 37. Qe4 {[%emt 0:00:06]} Bc8 {[%emt 0:02:01]} 38. Kg1 {[%emt 0:00:47]} Bh3 {[%emt 0:00:55]} 39. b3 {[%emt 0:01:54]} Nf7 {[%emt 0:08:11]} 40. Bxf7 {[%emt 0:00:32]} Qxf7 {[%emt 0:00:00]} 41. Kh2 {[%emt 0:12:36]} Bd7 {[%emt 0:10:47]} 42. Nb6 {[%emt 0:02:05]} Re8 {[%emt 0:00:21]} 43. Rg8+ {[%emt 0:00:33]} Rxg8 {[%emt 0:00:02]} 44. hxg8=Q+ {[%emt 0:00:14]} Qxg8 {[%emt 0:00:15]} 45. Qxf4 {[%emt 0:00:32]} Be8 {[%emt 0:00:45]} 46. Qh6+ {[%emt 0:04:19]} Qh7 {[%emt 0:00:02]} 47. Qxh7+ {[%emt 0:00:23]} Kxh7 {[%emt 0:00:01]} 48. Nc8 {[%emt 0:00:39]} Bg6 {[%emt 0:00:18]} 49. Nxd6 {[%emt 0:00:10]} Bb1 {[%emt 0:00:01]} 50. Nb7 {[%emt 0:00:17]} Bxa2 {[%emt 0:00:08]} 51. d6 {[%emt 0:00:12]} 1-0

[Event "Italian Youth U20 Championship 2023"]
[Site "Brescia"]
[Date "2023.12.09"]
[Round "7.4"]
[White "Bin-Suhayl, Ieysaa"]
[Black "Vincenti, Leonardo"]
[Result "1-0"]
[ECO "A01"]
[WhiteElo "2248"]
[BlackElo "2120"]
[Annotator "ChessBase"]
[PlyCount "53"]
[EventDate "2023.12.03"]
[EventType "tourn"]
[EventCountry "ITA"]
[SourceTitle "playchess.com"]
[Source "ChessBase"]
[SourceQuality "1"]
[TimeControl "40/6000+30:20/3000+30:900+30"]

1. b3 {[%emt 0:01:38]} e5 {[%emt 0:00:27]} 2. Bb2 {[%emt 0:00:14]} Nc6 {[%emt 0:00:17]} 3. e3 {[%emt 0:00:06]} d5 {[%emt 0:00:23]} 4. Bb5 {[%emt 0:00:20]} Bd6 {[%emt 0:00:06]} 5. f4 {[%emt 0:00:10]} Qh4+ {[%emt 0:00:16]} 6. g3 {[%emt 0:00:05]} Qe7 {[%emt 0:00:03]} 7. Nf3 {[%emt 0:00:41]} f6 {[%emt 0:01:54]} 8. Nc3 {[%emt 0:03:22]} d4 {[%emt 0:16:32]} 9. exd4 {[%emt 0:09:19]} exd4+ {[%emt 0:01:28]} 10. Ne2 {[%emt 0:00:10]} Bh3 {[%emt 0:24:34]} 11. Nfxd4 {[%emt 0:01:56]} O-O-O {[%emt 0:12:20]} 12. Nxc6 {[%emt 0:03:42]} Qe4 {[%emt 0:00:34]} 13. Nxa7+ {[%emt 0:04:53]} Kb8 {[%emt 0:00:05]} 14. Rg1 {[%emt 0:00:05]} Bg4 {[%emt 0:09:13]} 15. d4 {[%emt 0:11:38]} Bb4+ {[%emt 0:09:23]} 16. c3 {[%emt 0:01:11]} Bxe2 {[%emt 0:00:39]} 17. Bxe2 {[%emt 0:02:15]} Rxd4 {[%emt 0:05:09]} 18. Qc1 {[%emt 0:00:52]} Nh6 {[%emt 0:04:44]} 19. Nb5 {[%emt 0:30:54]} Rd3 {[%emt 0:06:36]} 20. cxb4 {[%emt 0:04:56]} c6 {[%emt 0:01:39]} 21. Qc4 {[%emt 0:02:47]} Qe3 {[%emt 0:00:42]} 22. Qxd3 {[%emt 0:00:36]} Qxg1+ {[%emt 0:00:05]} 23. Kd2 {[%emt 0:00:09]} Qxh2 {[%emt 0:00:23]} 24. Qd6+ {[%emt 0:00:33]} Ka8 {[%emt 0:00:01]} 25. Nc7+ {[%emt 0:00:06]} Ka7 {[%emt 0:00:03]} 26. Bd4+ {[%emt 0:00:03]} b6 {[%emt 0:00:03]} 27. Qxc6 {[%emt 0:00:33]} 1-0